[Event "White Rook U14 Final 2019"]
[Site "Sochi"]
[Date "2019.06.10"]
[Round "9.25"]
[White "Efimov, Leonid"]
[Black "Vatutin, Petr"]
[Result "0-1"]
[ECO "A34"]
[WhiteElo "1666"]
[BlackElo "1693"]
[Annotator "NA"]
[PlyCount "76"]
[EventDate "2019.06.02"]
[EventCountry "RUS"]
[SourceTitle "playchess.com"]
[Source "ChessBase"]
[SourceQuality "1"]
[TimeControl "5400+30"]

1. Nf3 {[%emt 0:00:00]} c5 {[%emt 0:00:00]} 2. c4 {[%emt 0:00:00]} Nc6 {[%emt 0:00:00]} 3. Nc3 {[%emt 0:00:00]} e5 {[%emt 0:01:31]} 4. e3 {[%emt 0:00:00]} Nf6 {[%emt 0:00:00]} 5. d4 {[%emt 0:00:00]} e4 {[%emt 0:00:00]} 6. Ne5 {[%emt 0:00:55]} cxd4 {[%emt 0:08:02]} 7. exd4 {[%emt 0:00:21]} Bb4 {[%emt 0:00:55]} 8. Bg5 {[%emt 0:09:21]} d6 {[%emt 0:21:20]} 9. Nxc6 {[%emt 0:00:00]} bxc6 {[%emt 0:00:00]} 10. d5 {[%emt 0:00:00]} Bxc3+ {[%emt 0:00:00]} 11. bxc3 {[%emt 0:00:00]} c5 {[%emt 0:00:00]} 12. Be2 {[%emt 0:00:00]} O-O {[%emt 0:00:00]} 13. h4 {[%emt 0:00:00]} Qe7 {[%emt 0:02:04]} 14. Qd2 {[%emt 0:04:21]} Qe5 {[%emt 0:03:53]} 15. Bf4 {[%emt 0:01:17]} Qe7 {[%emt 0:00:26]} 16. h5 {[%emt 0:21:51]} Bg4 {[%emt 0:25:57]} 17. h6 {[%emt 0:00:00]} g6 {[%emt 0:00:00]} 18. O-O {[%emt 0:00:00]} Bf5 {[%emt 0:00:01]} 19. Rae1 {[%emt 0:00:00]} Rfe8 {[%emt 0:00:00]} 20. Qd1 {[%emt 0:00:00]} Nd7 {[%emt 0:00:00]} 21. g4 {[%emt 0:00:00]} Bxg4 {[%emt 0:00:00]} 22. Bxg4 {[%emt 0:00:00]} f5 {[%emt 0:00:00]} 23. Be2 {[%emt 0:00:00]} Qh4 {[%emt 0:00:00]} 24. Qd2 {[%emt 0:00:01]} Ne5 {[%emt 0:00:00]} 25. Qe3 {[%emt 0:00:00]} Nf7 {[%emt 0:00:00]} 26. Qg3 {[%emt 0:00:00]} Qf6 {[%emt 0:00:00]} 27. Bd1 {[%emt 0:00:00]} Kh8 {[%emt 0:00:00]} 28. Ba4 {[%emt 0:00:00]} Rg8 {[%emt 0:05:33]} 29. Qg2 {[%emt 0:15:55]} g5 {[%emt 0:01:26]} 30. Bh2 {[%emt 0:00:19]} g4 {[%emt 0:05:08]} 31. Bd7 {[%emt 0:01:24]} Ng5 {[%emt 0:00:55]} 32. Qg3 {[%emt 0:03:44]} f4 {[%emt 0:07:10]} 33. Qg2 {[%emt 0:00:25]} Qxh6 {[%emt 0:11:17]} 34. Be6 {[%emt 0:05:34]} Nf3+ {[%emt 0:00:00]} 35. Kh1 {[%emt 0:03:51]} Rg5 {[%emt 0:00:00]} 36. Bxg4 {[%emt 0:08:06]} Rxg4 {[%emt 0:00:00]} 37. Qxf3 {[%emt 0:07:34]} exf3 {[%emt 0:00:00]} 38. Re6 {[%emt 0:00:10]} Qh3 {[%emt 0:00:00]} 0-1

[Event "White Rook U14 Final 2019"]
[Site "Sochi"]
[Date "2019.06.10"]
[Round "9.26"]
[White "Masyukov, Egor"]
[Black "Ivanov, Matvei"]
[Result "0-1"]
[ECO "A24"]
[WhiteElo "1645"]
[BlackElo "1529"]
[Annotator "NA"]
[PlyCount "172"]
[EventDate "2019.06.02"]
[EventCountry "RUS"]
[SourceTitle "playchess.com"]
[Source "ChessBase"]
[SourceQuality "1"]
[TimeControl "5400+30"]

1. c4 {[%emt 0:00:00]} Nf6 {[%emt 0:00:00]} 2. Nc3 {[%emt 0:00:00]} g6 {[%emt 0:00:00]} 3. g3 {[%emt 0:00:20]} Bg7 {[%emt 0:00:00]} 4. Bg2 {[%emt 0:00:00]} O-O {[%emt 0:00:00]} 5. e4 {[%emt 0:00:00]} d6 {[%emt 0:00:00]} 6. Nge2 {[%emt 0:01:09]} e5 {[%emt 0:01:03]} 7. d3 {[%emt 0:02:17]} c6 {[%emt 0:03:18]} 8. O-O {[%emt 0:03:08]} Nbd7 {[%emt 0:22:51]} 9. h3 {[%emt 0:10:20]} Ne8 {[%emt 0:00:00]} 10. Be3 {[%emt 0:00:00]} Nc5 {[%emt 0:00:00]} 11. d4 {[%emt 0:00:00]} exd4 {[%emt 0:00:00]} 12. Bxd4 {[%emt 0:01:52]} Bxd4 {[%emt 0:02:51]} 13. Nxd4 {[%emt 0:00:41]} Ne6 {[%emt 0:00:13]} 14. b3 {[%emt 0:21:44]} Qf6 {[%emt 0:36:58]} 15. Nce2 {[%emt 0:00:00]} Nxd4 {[%emt 0:00:00]} 16. Nxd4 {[%emt 0:00:00]} Ng7 {[%emt 0:00:00]} 17. Qd3 {[%emt 0:00:01]} Qe7 {[%emt 0:00:00]} 18. Rfe1 {[%emt 0:00:00]} Be6 {[%emt 0:00:00]} 19. Rad1 {[%emt 0:00:00]} Rad8 {[%emt 0:00:00]} 20. f4 {[%emt 0:04:01]} Qd7 {[%emt 0:11:18]} 21. Nxe6 {[%emt 0:03:47]} fxe6 {[%emt 0:00:54]} 22. h4 {[%emt 0:01:32]} Qf7 {[%emt 0:02:09]} 23. Kh2 {[%emt 0:01:55]} Nh5 {[%emt 0:01:43]} 24. Bh3 {[%emt 0:01:41]} Ng7 {[%emt 0:02:29]} 25. Re2 {[%emt 0:00:58]} Qe7 {[%emt 0:02:00]} 26. Qe3 {[%emt 0:02:10]} a6 {[%emt 0:01:30]} 27. Qc3 {[%emt 0:03:13]} e5 {[%emt 0:01:33]} 28. fxe5 {[%emt 0:00:23]} Qxe5 {[%emt 0:00:41]} 29. Qxe5 {[%emt 0:00:00]} dxe5 {[%emt 0:00:00]} 30. Red2 {[%emt 0:01:22]} Rde8 {[%emt 0:05:43]} 31. Kg2 {[%emt 0:00:58]} Re7 {[%emt 0:00:07]} 32. Rd7 {[%emt 0:01:23]} Rfe8 {[%emt 0:02:31]} 33. Rxe7 {[%emt 0:01:05]} Rxe7 {[%emt 0:00:33]} 34. Rd7 {[%emt 0:00:30]} Kf8 {[%emt 0:01:34]} 35. Rxe7 {[%emt 0:01:25]} Kxe7 {[%emt 0:00:03]} 36. Bc8 {[%emt 0:00:05]} b6 {[%emt 0:00:46]} 37. Bxa6 {[%emt 0:00:58]} Kd7 {[%emt 0:00:13]} 38. c5 {[%emt 0:02:16]} b5 {[%emt 0:00:07]} 39. b4 {[%emt 0:01:03]} Ne6 {[%emt 0:00:10]} 40. a4 {[%emt 0:01:07]} bxa4 {[%emt 0:01:15]} 41. Bc4 {[%emt 0:04:56]} Nd4 {[%emt 0:00:08]} 42. Kf2 {[%emt 0:00:30]} a3 {[%emt 0:00:08]} 43. Ke1 {[%emt 0:00:32]} Nc2+ {[%emt 0:00:11]} 44. Kd2 {[%emt 0:03:21]} Nxb4 {[%emt 0:00:21]} 45. Kc1 {[%emt 0:00:39]} h6 {[%emt 0:00:27]} 46. g4 {[%emt 0:00:21]} g5 {[%emt 0:03:19]} 47. h5 {[%emt 0:01:32]} Kc7 {[%emt 0:00:27]} 48. Kb1 {[%emt 0:00:07]} Kb7 {[%emt 0:00:15]} 49. Bg8 {[%emt 0:00:16]} Na6 {[%emt 0:00:05]} 50. Ka2 {[%emt 0:01:38]} Nxc5 {[%emt 0:00:19]} 51. Bh7 {[%emt 0:00:54]} Kb6 {[%emt 0:02:02]} 52. Kxa3 {[%emt 0:00:15]} Kb5 {[%emt 0:00:04]} 53. Bf5 {[%emt 0:00:08]} Kc4 {[%emt 0:00:20]} 54. Bg6 {[%emt 0:00:08]} Nd3 {[%emt 0:00:12]} 55. Bh7 {[%emt 0:00:33]} c5 {[%emt 0:00:24]} 56. Bf5 {[%emt 0:00:12]} Kc3 {[%emt 0:00:50]} 57. Ka2 {[%emt 0:00:30]} c4 {[%emt 0:01:28]} 58. Kb1 {[%emt 0:00:30]} Kd2 {[%emt 0:00:02]} 59. Be6 {[%emt 0:00:43]} c3 {[%emt 0:00:09]} 60. Bb3 {[%emt 0:00:25]} Nb4 {[%emt 0:00:11]} 61. Ba4 {[%emt 0:01:07]} c2+ {[%emt 0:00:36]} 62. Bxc2 {[%emt 0:00:00]} Nxc2 {[%emt 0:00:04]} 63. Kb2 {[%emt 0:00:22]} Ne3 {[%emt 0:00:03]} 64. Kb3 {[%emt 0:00:04]} Kd3 {[%emt 0:00:07]} 65. Kb4 {[%emt 0:00:13]} Kxe4 {[%emt 0:00:16]} 66. Kc3 {[%emt 0:00:03]} Nxg4 {[%emt 0:00:05]} 67. Kd2 {[%emt 0:00:05]} Nf6 {[%emt 0:00:00]} 68. Ke2 {[%emt 0:00:06]} Nxh5 {[%emt 0:00:00]} 69. Ke1 {[%emt 0:00:06]} g4 {[%emt 0:00:19]} 70. Ke2 {[%emt 0:00:04]} g3 {[%emt 0:00:00]} 71. Ke1 {[%emt 0:00:02]} Kf3 {[%emt 0:00:05]} 72. Kf1 {[%emt 0:00:04]} Nf6 {[%emt 0:00:04]} 73. Kg1 {[%emt 0:00:06]} e4 {[%emt 0:00:04]} 74. Kf1 {[%emt 0:00:07]} e3 {[%emt 0:00:09]} 75. Ke1 {[%emt 0:00:04]} e2 {[%emt 0:00:04]} 76. Kd2 {[%emt 0:00:10]} Kf2 {[%emt 0:00:17]} 77. Kd3 {[%emt 0:00:13]} e1=Q {[%emt 0:00:18]} 78. Kd4 {[%emt 0:00:06]} Qe4+ {[%emt 0:00:07]} 79. Kc5 {[%emt 0:00:05]} Qd5+ {[%emt 0:00:16]} 80. Kb4 {[%emt 0:00:06]} Qc6 {[%emt 0:00:09]} 81. Kb3 {[%emt 0:00:03]} Qc5 {[%emt 0:00:05]} 82. Kb2 {[%emt 0:00:05]} Qc4 {[%emt 0:00:22]} 83. Kb1 {[%emt 0:00:05]} Qc3 {[%emt 0:00:05]} 84. Ka2 {[%emt 0:00:05]} Qb4 {[%emt 0:00:03]} 85. Ka1 {[%emt 0:00:07]} Nd5 {[%emt 0:00:05]} 86. Ka2 {[%emt 0:00:11]} Nc3+ {[%emt 0:00:03]} 0-1

[Event "White Rook U14 Final 2019"]
[Site "Sochi"]
[Date "2019.06.10"]
[Round "9.27"]
[White "Valiev, Ravil"]
[Black "Urdin, Matvey"]
[Result "1/2-1/2"]
[ECO "B00"]
[WhiteElo "1458"]
[BlackElo "1515"]
[Annotator "NA"]
[PlyCount "39"]
[EventDate "2019.06.02"]
[EventCountry "RUS"]
[SourceTitle "playchess.com"]
[Source "ChessBase"]
[SourceQuality "1"]
[TimeControl "5400+30"]

1. d4 {[%emt 0:00:00]} b5 {[%emt 0:00:00]} 2. e4 {[%emt 0:00:38]} a6 {[%emt 0:00:00]} 3. c4 {[%emt 0:00:00]} bxc4 {[%emt 0:00:00]} 4. Bxc4 {[%emt 0:00:47]} e6 {[%emt 0:00:00]} 5. Nc3 {[%emt 0:00:33]} Bb7 {[%emt 0:01:05]} 6. f3 {[%emt 0:07:46]} g6 {[%emt 0:23:18]} 7. Nge2 {[%emt 0:09:49]} Bg7 {[%emt 0:00:00]} 8. Be3 {[%emt 0:00:00]} Ne7 {[%emt 0:00:00]} 9. Qd2 {[%emt 0:00:00]} d6 {[%emt 0:00:00]} 10. h4 {[%emt 0:00:00]} h5 {[%emt 0:02:11]} 11. Kf2 {[%emt 0:06:27]} Nd7 {[%emt 0:36:01]} 12. Rag1 {[%emt 0:19:41]} Nb6 {[%emt 0:00:00]} 13. Bb3 {[%emt 0:00:00]} d5 {[%emt 0:00:00]} 14. e5 {[%emt 0:00:00]} Nf5 {[%emt 0:00:00]} 15. Bf4 {[%emt 0:00:00]} Bh6 {[%emt 0:00:00]} 16. Bxh6 {[%emt 0:00:00]} Nxh6 {[%emt 0:00:00]} 17. g4 {[%emt 0:00:00]} hxg4 {[%emt 0:00:00]} 18. fxg4 {[%emt 0:15:39]} c5 {[%emt 0:05:14]} 19. Qf4 {[%emt 0:02:27]} cxd4 {[%emt 0:09:09]} 20. Nxd4 {[%emt 0:00:00]} 1/2-1/2

[Event "White Rook U14 Final 2019"]
[Site "Sochi"]
[Date "2019.06.10"]
[Round "9.28"]
[White "Chavkina, Anastasia"]
[Black "Magizova, Yana"]
[Result "0-1"]
[ECO "C42"]
[WhiteElo "1214"]
[BlackElo "1585"]
[Annotator "NA"]
[PlyCount "108"]
[EventDate "2019.06.02"]
[EventCountry "RUS"]
[SourceTitle "playchess.com"]
[Source "ChessBase"]
[SourceQuality "1"]
[TimeControl "5400+30"]

1. e4 {[%emt 0:00:00]} e5 {[%emt 0:00:00]} 2. Nf3 {[%emt 0:00:07]} d6 {[%emt 0:00:08]} 3. Nc3 {[%emt 0:00:37]} Nf6 {[%emt 0:00:34]} 4. Bc4 {[%emt 0:04:01]} Be6 {[%emt 0:02:24]} 5. Bb3 {[%emt 0:02:22]} Bxb3 {[%emt 0:01:42]} 6. axb3 {[%emt 0:00:39]} c5 {[%emt 0:00:17]} 7. O-O {[%emt 0:35:10]} h6 {[%emt 0:00:00]} 8. d3 {[%emt 0:00:00]} g5 {[%emt 0:00:00]} 9. Ne2 {[%emt 0:00:00]} Bg7 {[%emt 0:00:00]} 10. Ng3 {[%emt 0:00:00]} Nc6 {[%emt 0:00:00]} 11. Be3 {[%emt 0:00:00]} b6 {[%emt 0:00:00]} 12. Nf5 {[%emt 0:00:00]} Rg8 {[%emt 0:00:00]} 13. c3 {[%emt 0:00:00]} d5 {[%emt 0:01:37]} 14. Nd2 {[%emt 0:03:20]} d4 {[%emt 0:02:01]} 15. Bxg5 {[%emt 0:50:44]} hxg5 {[%emt 0:00:00]} 16. Nf3 {[%emt 0:00:00]} Bf8 {[%emt 0:00:00]} 17. Qd2 {[%emt 0:00:00]} Nh5 {[%emt 0:00:00]} 18. g3 {[%emt 0:00:00]} f6 {[%emt 0:00:00]} 19. Ra2 {[%emt 0:00:00]} Ne7 {[%emt 0:00:00]} 20. Nxe7 {[%emt 0:00:00]} Qxe7 {[%emt 0:00:00]} 21. Rfa1 {[%emt 0:00:00]} Qd7 {[%emt 0:00:00]} 22. Qe2 {[%emt 0:00:00]} Ng7 {[%emt 0:00:00]} 23. Nd2 {[%emt 0:00:00]} a5 {[%emt 0:00:00]} 24. b4 {[%emt 0:00:00]} cxb4 {[%emt 0:00:00]} 25. cxb4 {[%emt 0:00:00]} Bxb4 {[%emt 0:00:00]} 26. Nc4 {[%emt 0:00:00]} Rb8 {[%emt 0:00:00]} 27. Qc2 {[%emt 0:00:00]} Ne6 {[%emt 0:00:00]} 28. Qe2 {[%emt 0:00:00]} g4 {[%emt 0:01:16]} 29. Rf1 {[%emt 0:03:50]} Ng5 {[%emt 0:00:37]} 30. Kh1 {[%emt 0:01:22]} Nf3 {[%emt 0:00:11]} 31. h4 {[%emt 0:01:01]} Rh8 {[%emt 0:00:55]} 32. Kg2 {[%emt 0:00:16]} Qe6 {[%emt 0:02:33]} 33. Raa1 {[%emt 0:00:26]} Rb7 {[%emt 0:01:54]} 34. Rh1 {[%emt 0:00:40]} Rf8 {[%emt 0:03:49]} 35. Na3 {[%emt 0:02:25]} Bxa3 {[%emt 0:01:14]} 36. bxa3 {[%emt 0:00:14]} f5 {[%emt 0:00:51]} 37. Rad1 {[%emt 0:00:46]} Qb3 {[%emt 0:03:27]} 38. Ra1 {[%emt 0:00:30]} fxe4 {[%emt 0:02:30]} 39. Qxe4 {[%emt 0:00:30]} Rg7 {[%emt 0:07:37]} 40. Qc6+ {[%emt 0:00:26]} Kf7 {[%emt 0:03:42]} 41. Qd7+ {[%emt 0:00:34]} Kg8 {[%emt 0:01:13]} 42. Qd6 {[%emt 0:00:05]} Qxd3 {[%emt 0:02:05]} 43. Qe6+ {[%emt 0:00:16]} Kh8 {[%emt 0:00:45]} 44. Qxb6 {[%emt 0:01:09]} Qe4 {[%emt 0:01:35]} 45. Kf1 {[%emt 0:00:30]} Nd2+ {[%emt 0:02:41]} 46. Kg1 {[%emt 0:00:28]} Qe2 {[%emt 0:01:45]} 47. Qh6+ {[%emt 0:00:32]} Kg8 {[%emt 0:00:17]} 48. Qe6+ {[%emt 0:00:18]} Kh7 {[%emt 0:00:14]} 49. Rh2 {[%emt 0:00:38]} Nf3+ {[%emt 0:00:18]} 50. Kh1 {[%emt 0:00:22]} Nxh2 {[%emt 0:00:13]} 51. Kxh2 {[%emt 0:00:04]} Rxf2+ {[%emt 0:00:13]} 52. Kg1 {[%emt 0:00:02]} Rg2+ {[%emt 0:00:12]} 53. Kh1 {[%emt 0:00:07]} Rh2+ {[%emt 0:00:04]} 54. Kg1 {[%emt 0:00:05]} Qg2# {[%emt 0:00:04]} 0-1

[Event "White Rook U14 Final 2019"]
[Site "Sochi"]
[Date "2019.06.10"]
[Round "9.33"]
[White "Andrijashkin, Deniss"]
[Black "Silva, Kaua Marques"]
[Result "0-1"]
[ECO "A34"]
[WhiteElo "1891"]
[BlackElo "1991"]
[Annotator "NA"]
[PlyCount "108"]
[EventDate "2019.06.02"]
[EventCountry "RUS"]
[SourceTitle "playchess.com"]
[Source "ChessBase"]
[SourceQuality "1"]
[TimeControl "5400+30"]

1. Nf3 {[%emt 0:00:00]} c5 {[%emt 0:00:43]} 2. c4 {[%emt 0:01:34]} Nf6 {[%emt 0:01:02]} 3. Nc3 {[%emt 0:00:00]} d5 {[%emt 0:00:20]} 4. cxd5 {[%emt 0:44:22]} Nxd5 {[%emt 0:00:00]} 5. g3 {[%emt 0:00:00]} Nc6 {[%emt 0:00:00]} 6. Bg2 {[%emt 0:00:00]} Nc7 {[%emt 0:00:00]} 7. d3 {[%emt 0:00:00]} e5 {[%emt 0:00:00]} 8. O-O {[%emt 0:00:00]} Be7 {[%emt 0:00:00]} 9. Be3 {[%emt 0:00:00]} O-O {[%emt 0:00:00]} 10. Na4 {[%emt 0:00:00]} b6 {[%emt 0:00:00]} 11. Rc1 {[%emt 0:02:24]} Nd5 {[%emt 0:01:56]} 12. Bd2 {[%emt 0:00:08]} Be6 {[%emt 1:00:17]} 13. b4 {[%emt 0:00:00]} Ndxb4 {[%emt 0:00:00]} 14. Bxb4 {[%emt 0:00:00]} Nxb4 {[%emt 0:00:00]} 15. Nxe5 {[%emt 0:00:00]} Nxa2 {[%emt 0:00:00]} 16. Nc6 {[%emt 0:00:00]} Qc7 {[%emt 0:00:00]} 17. Nxe7+ {[%emt 0:00:00]} Qxe7 {[%emt 0:00:00]} 18. Ra1 {[%emt 0:00:00]} Rad8 {[%emt 0:00:00]} 19. Qb1 {[%emt 0:00:00]} Nb4 {[%emt 0:00:00]} 20. Nc3 {[%emt 0:00:00]} Rfe8 {[%emt 0:00:00]} 21. Rc1 {[%emt 0:00:00]} Bg4 {[%emt 0:00:00]} 22. Re1 {[%emt 0:00:20]} Qe5 {[%emt 0:03:07]} 23. Qc1 {[%emt 0:01:48]} Re7 {[%emt 0:05:25]} 24. h3 {[%emt 0:00:37]} Bh5 {[%emt 0:00:38]} 25. g4 {[%emt 0:00:30]} Bg6 {[%emt 0:00:03]} 26. f4 {[%emt 0:00:19]} Qd4+ {[%emt 0:02:58]} 27. e3 {[%emt 0:00:15]} Qd7 {[%emt 0:08:36]} 28. f5 {[%emt 0:07:38]} Nxd3 {[%emt 0:01:37]} 29. Qd2 {[%emt 0:01:23]} Nxe1 {[%emt 0:01:39]} 30. Qxd7 {[%emt 0:06:34]} Rexd7 {[%emt 0:02:50]} 31. Rxe1 {[%emt 0:00:03]} Rd3 {[%emt 0:01:02]} 32. Ne4 {[%emt 0:00:31]} Rd1 {[%emt 0:02:10]} 33. Kf2 {[%emt 0:01:15]} Rxe1 {[%emt 0:01:07]} 34. Kxe1 {[%emt 0:00:03]} a5 {[%emt 0:00:23]} 35. Ke2 {[%emt 0:00:37]} a4 {[%emt 0:01:09]} 36. Nc3 {[%emt 0:00:24]} a3 {[%emt 0:02:22]} 37. Bc6 {[%emt 0:01:03]} c4 {[%emt 0:08:21]} 38. Bb5 {[%emt 0:01:49]} Rd3 {[%emt 0:00:45]} 39. Na2 {[%emt 0:00:14]} Rb3 {[%emt 0:00:07]} 40. Bxc4 {[%emt 0:00:03]} Rb2+ {[%emt 0:00:09]} 41. Kd3 {[%emt 0:01:10]} b5 {[%emt 0:00:45]} 42. Bd5 {[%emt 0:00:14]} Kf8 {[%emt 0:00:59]} 43. fxg6 {[%emt 0:00:45]} hxg6 {[%emt 0:00:30]} 44. Kc3 {[%emt 0:00:06]} Ke7 {[%emt 0:00:30]} 45. h4 {[%emt 0:00:38]} f6 {[%emt 0:00:30]} 46. Bb3 {[%emt 0:00:36]} Kd6 {[%emt 0:00:30]} 47. Kb4 {[%emt 0:01:44]} Rg2 {[%emt 0:00:23]} 48. Kxa3 {[%emt 0:00:10]} Rxg4 {[%emt 0:00:37]} 49. Bf7 {[%emt 0:00:59]} Ke7 {[%emt 0:00:29]} 50. Bd5 {[%emt 0:00:27]} Rxh4 {[%emt 0:00:26]} 51. Bc6 {[%emt 0:00:17]} g5 {[%emt 0:00:16]} 52. Bxb5 {[%emt 0:00:42]} g4 {[%emt 0:00:49]} 53. Nc3 {[%emt 0:00:08]} g3 {[%emt 0:00:07]} 54. Bc6 {[%emt 0:00:42]} Rc4 {[%emt 0:00:53]} 0-1

[Event "White Rook U14 Final 2019"]
[Site "Sochi"]
[Date "2019.06.10"]
[Round "9.34"]
[White "Da Rosa, Henrique Jaze Simoes"]
[Black "Sadekov, Maksim"]
[Result "0-1"]
[ECO "A10"]
[WhiteElo "1645"]
[BlackElo "1541"]
[Annotator "NA"]
[PlyCount "71"]
[EventDate "2019.06.02"]
[EventCountry "RUS"]
[SourceTitle "playchess.com"]
[Source "ChessBase"]
[SourceQuality "1"]
[TimeControl "5400+30"]

1. Nf3 {[%emt 0:00:00]} b6 {[%emt 0:00:52]} 2. g3 {[%emt 0:00:00]} Bb7 {[%emt 0:00:00]} 3. Bg2 {[%emt 0:00:00]} e6 {[%emt 0:00:00]} 4. c4 {[%emt 0:00:34]} f5 {[%emt 0:00:00]} 5. O-O {[%emt 0:01:53]} Nf6 {[%emt 0:00:00]} 6. Nc3 {[%emt 0:01:39]} Be7 {[%emt 0:00:00]} 7. Re1 {[%emt 0:04:18]} O-O {[%emt 0:00:00]} 8. d3 {[%emt 0:38:44]} Bb4 {[%emt 0:00:00]} 9. Bd2 {[%emt 0:03:34]} Bxc3 {[%emt 0:01:11]} 10. Bxc3 {[%emt 0:00:45]} Qe7 {[%emt 0:59:17]} 11. Qd2 {[%emt 0:00:00]} d6 {[%emt 0:00:00]} 12. Qg5 {[%emt 0:00:00]} Nbd7 {[%emt 0:00:00]} 13. e4 {[%emt 0:00:00]} fxe4 {[%emt 0:00:00]} 14. dxe4 {[%emt 0:00:00]} e5 {[%emt 0:00:00]} 15. Nh4 {[%emt 0:00:00]} Qf7 {[%emt 0:04:21]} 16. Nf5 {[%emt 0:01:53]} Kh8 {[%emt 0:00:12]} 17. b3 {[%emt 0:03:53]} Nc5 {[%emt 0:01:49]} 18. f3 {[%emt 0:05:07]} g6 {[%emt 0:09:59]} 19. Nh6 {[%emt 0:03:30]} Qg7 {[%emt 0:02:00]} 20. Ng4 {[%emt 0:01:50]} Ne6 {[%emt 0:02:59]} 21. Qh4 {[%emt 0:01:26]} Bc8 {[%emt 0:01:46]} 22. Nxf6 {[%emt 0:01:36]} Rxf6 {[%emt 0:01:04]} 23. f4 {[%emt 0:02:56]} g5 {[%emt 0:00:13]} 24. fxg5 {[%emt 0:00:23]} Nxg5 {[%emt 0:00:11]} 25. Rf1 {[%emt 0:00:48]} Rh6 {[%emt 0:07:57]} 26. Rf8+ {[%emt 0:00:57]} Qxf8 {[%emt 0:00:05]} 27. Qxg5 {[%emt 0:00:12]} Rg6 {[%emt 0:00:35]} 28. Qe3 {[%emt 0:03:29]} Qh6 {[%emt 0:01:02]} 29. Qd3 {[%emt 0:01:11]} Bh3 {[%emt 0:00:43]} 30. Bd2 {[%emt 0:01:02]} Qh5 {[%emt 0:00:38]} 31. Bf3 {[%emt 0:00:21]} Bg4 {[%emt 0:00:20]} 32. Bg2 {[%emt 0:00:19]} Rf8 {[%emt 0:00:55]} 33. Rf1 {[%emt 0:01:51]} Rgf6 {[%emt 0:00:30]} 34. Rxf6 {[%emt 0:00:43]} Rxf6 {[%emt 0:00:06]} 35. Qd5 {[%emt 0:00:11]} Be6 {[%emt 0:01:03]} 36. Qa8+ {[%emt 0:01:01]} 0-1

[Event "White Rook U14 Final 2019"]
[Site "Sochi"]
[Date "2019.06.10"]
[Round "9.35"]
[White "Lazojev, Mark"]
[Black "Parreira, Teodora Ribeiro"]
[Result "0-1"]
[ECO "A25"]
[WhiteElo "1179"]
[BlackElo "1617"]
[Annotator "NA"]
[PlyCount "132"]
[EventDate "2019.06.02"]
[EventCountry "RUS"]
[SourceTitle "playchess.com"]
[Source "ChessBase"]
[SourceQuality "1"]
[TimeControl "5400+30"]

1. c4 {[%emt 0:00:00]} g6 {[%emt 0:00:15]} 2. Nc3 {[%emt 0:00:00]} Bg7 {[%emt 0:00:08]} 3. g3 {[%emt 0:00:18]} e5 {[%emt 0:00:27]} 4. Bg2 {[%emt 0:00:16]} d6 {[%emt 0:00:26]} 5. Rb1 {[%emt 0:00:42]} f5 {[%emt 0:01:32]} 6. e3 {[%emt 0:07:26]} Nf6 {[%emt 0:36:38]} 7. Nge2 {[%emt 0:00:00]} O-O {[%emt 0:00:00]} 8. O-O {[%emt 0:00:00]} Nc6 {[%emt 0:00:00]} 9. b4 {[%emt 0:00:00]} g5 {[%emt 0:00:00]} 10. a4 {[%emt 0:00:00]} Qe8 {[%emt 0:00:00]} 11. f4 {[%emt 1:04:48]} g4 {[%emt 0:00:00]} 12. Ba3 {[%emt 0:00:00]} Qh5 {[%emt 0:00:00]} 13. Kf2 {[%emt 0:00:00]} Qg6 {[%emt 0:00:00]} 14. Kg1 {[%emt 0:00:00]} Ne7 {[%emt 0:00:00]} 15. Nb5 {[%emt 0:00:00]} Ne8 {[%emt 0:00:00]} 16. Nbc3 {[%emt 0:01:58]} h5 {[%emt 0:02:58]} 17. Nd5 {[%emt 0:03:54]} Nxd5 {[%emt 0:00:55]} 18. Bxd5+ {[%emt 0:00:07]} Kh7 {[%emt 0:00:30]} 19. Qc2 {[%emt 0:01:11]} c6 {[%emt 0:06:49]} 20. Bg2 {[%emt 0:00:52]} Qh6 {[%emt 0:01:47]} 21. Kf2 {[%emt 0:00:55]} h4 {[%emt 0:03:18]} 22. Rh1 {[%emt 0:02:25]} Kg6 {[%emt 0:01:09]} 23. Nc3 {[%emt 0:01:30]} Rh8 {[%emt 0:01:31]} 24. Rbe1 {[%emt 0:01:05]} Nf6 {[%emt 0:07:25]} 25. Qb1 {[%emt 0:01:43]} Nh5 {[%emt 0:00:51]} 26. Ne2 {[%emt 0:00:50]} exf4 {[%emt 0:00:48]} 27. Nxf4+ {[%emt 0:00:29]} Nxf4 {[%emt 0:00:08]} 28. exf4 {[%emt 0:00:11]} Bd4+ {[%emt 0:00:06]} 29. Ke2 {[%emt 0:00:26]} Re8+ {[%emt 0:00:37]} 30. Kd1 {[%emt 0:00:21]} Bd7 {[%emt 0:00:33]} 31. Kc2 {[%emt 0:00:41]} h3 {[%emt 0:00:49]} 32. Bf1 {[%emt 0:00:14]} Rxe1 {[%emt 0:00:47]} 33. Qxe1 {[%emt 0:00:15]} Re8 {[%emt 0:00:02]} 34. Qd1 {[%emt 0:00:26]} c5 {[%emt 0:00:18]} 35. Kb3 {[%emt 0:00:58]} Bc6 {[%emt 0:00:02]} 36. Bd3 {[%emt 0:00:41]} Bxh1 {[%emt 0:00:35]} 37. Qxh1 {[%emt 0:00:13]} Qg7 {[%emt 0:00:30]} 38. Qd5 {[%emt 0:00:18]} Qd7 {[%emt 0:00:11]} 39. bxc5 {[%emt 0:00:51]} Qe6 {[%emt 0:01:56]} 40. Qxd4 {[%emt 0:00:36]} dxc5 {[%emt 0:00:17]} 41. Bxc5 {[%emt 0:00:26]} b6 {[%emt 0:01:02]} 42. Bb4 {[%emt 0:00:29]} Qf6 {[%emt 0:03:36]} 43. Bc3 {[%emt 0:01:41]} Qxd4 {[%emt 0:00:20]} 44. Bxd4 {[%emt 0:00:11]} Re1 {[%emt 0:00:06]} 45. c5 {[%emt 0:00:51]} bxc5 {[%emt 0:00:55]} 46. Bxc5 {[%emt 0:00:23]} Rh1 {[%emt 0:00:05]} 47. Bxa7 {[%emt 0:00:36]} Rxh2 {[%emt 0:00:05]} 48. Bb5 {[%emt 0:00:34]} Rxd2 {[%emt 0:01:00]} 49. Kc3 {[%emt 0:00:28]} h2 {[%emt 0:01:02]} 50. Bc6 {[%emt 0:00:30]} Rd8 {[%emt 0:00:05]} 51. Kb4 {[%emt 0:00:30]} Rc8 {[%emt 0:01:06]} 52. Bg2 {[%emt 0:00:26]} Rc1 {[%emt 0:01:42]} 53. a5 {[%emt 0:00:31]} Rb1+ {[%emt 0:00:06]} 54. Kc5 {[%emt 0:00:25]} Rg1 {[%emt 0:00:35]} 55. Bd5 {[%emt 0:00:34]} Rxg3 {[%emt 0:00:13]} 56. Bh1 {[%emt 0:00:38]} Rf3 {[%emt 0:00:25]} 57. Bb8 {[%emt 0:00:20]} Rf1 {[%emt 0:00:16]} 58. Bg2 {[%emt 0:00:25]} g3 {[%emt 0:01:31]} 59. Kc6 {[%emt 0:00:44]} Rf2 {[%emt 0:00:39]} 60. Bh1 {[%emt 0:00:30]} g2 {[%emt 0:00:06]} 61. Bxg2 {[%emt 0:00:31]} Rxg2 {[%emt 0:00:32]} 62. a6 {[%emt 0:00:17]} h1=Q {[%emt 0:00:14]} 63. a7 {[%emt 0:00:12]} Rd2+ {[%emt 0:00:15]} 64. Kc7 {[%emt 0:00:22]} Qc1+ {[%emt 0:00:16]} 65. Kb7 {[%emt 0:00:14]} Rb2+ {[%emt 0:00:09]} 66. Ka8 {[%emt 0:00:21]} Qc6# {[%emt 0:00:05]} 0-1